bitfinex-derivatives/quotes_BTCF0:USTF0_20250318
["timestamp","ask_amount","ask_price","bid_price","bid_amount"]
[1742328478801,0.4823773,82267.0,82264.0,0.055]
[1742328478802,0.1215802,82265.0,82264.0,0.055]
[1742328478990,0.1205802,82265.0,82264.0,0.055]
[1742328479187,0.1215846,82262.0,82261.0,0.00925324]
[1742328479501,0.1215846,82262.0,82256.0,0.88372]
[1742328479502,0.121592,82257.0,82256.0,0.00084]
[1742328479798,0.1215935,82256.0,82252.0,0.21700907]
[1742328480004,0.2836935,82256.0,82252.0,0.21700907]
[1742328480299,0.2836935,82256.0,82252.0,0.21696907]
[1742328480886,0.2836935,82256.0,82253.0,0.0521]
[1742328481104,0.01140434,82277.0,82271.0,0.1215713]
[1742328481399,0.00064,82278.0,82277.0,0.1215625]
[1742328481604,4e-05,82284.0,82283.0,0.1215536]
[1742328481789,0.00024,82285.0,82284.0,0.1215521]
[1742328482101,0.1215521,82284.0,82283.0,0.1736521]
[1742328482297,0.2296521,82284.0,82283.0,0.1736521]
[1742328483706,0.2296521,82284.0,82283.0,0.18833216]
[1742328484001,0.002,82284.0,82283.0,0.18833216]
[1742328485104,0.00024,82285.0,82284.0,0.1215521]
[1742328485407,0.1217907,82285.0,82284.0,0.0548]
[1742328485606,0.1217907,82285.0,82284.0,0.1763521]
[1742328485795,0.1782907,82285.0,82284.0,0.1763521]
[1742328485988,0.2345907,82285.0,82284.0,0.1763521]
[1742328487405,0.2365907,82285.0,82284.0,0.1763521]
[1742328487906,0.2385907,82285.0,82284.0,0.1763521]
[1742328488102,0.2385907,82285.0,82284.0,0.2279521]
[1742328490804,0.11704,82285.0,82284.0,0.2279521]
[1742328495612,0.0609531,82292.0,82291.0,0.1215418]
[1742328495613,0.0001823,82292.0,82291.0,0.1215418]
[1742328495915,0.3608,82315.0,82291.0,0.58848]
[1742328496099,0.3608,82315.0,82306.0,0.1215196]
[1742328496100,4e-05,82307.0,82306.0,0.1215196]
[1742328496300,4e-05,82307.0,82306.0,0.2966996]
[1742328497312,0.0522,82311.0,82310.0,0.1215137]
[1742328497517,0.0522,82311.0,82310.0,0.13583796]
[1742328497703,0.0522,82311.0,82310.0,0.19013796]
[1742328498317,0.1069,82311.0,82310.0,0.19013796]
[1742328498518,0.2284123,82311.0,82310.0,0.19013796]
[1742328498713,0.1119,82311.0,82310.0,0.19013796]
[1742328499910,0.1119,82311.0,82310.0,0.31281796]
[1742328500110,0.0572,82311.0,82310.0,0.31281796]
[1742328500310,0.005,82311.0,82310.0,0.31281796]
[1742328500512,0.011,82311.0,82310.0,0.31281796]
[1742328502514,0.011,82311.0,82310.0,0.19130426]
[1742328502818,0.1325123,82311.0,82310.0,0.13700426]
[1742328503209,0.1215241,82303.0,82302.0,0.88384]
[1742328503514,0.1215241,82303.0,82302.0,1.02003683]
[1742328503708,0.1215241,82303.0,82302.0,1.0054]
[1742328504012,0.1081,82303.0,82302.0,1.1269256]
[1742328504521,0.1131,82303.0,82302.0,1.19682514]
[1742328504722,0.1181,82303.0,82302.0,1.19682514]
[1742328504922,0.2396241,82303.0,82302.0,1.1825256]
[1742328505219,0.2356241,82303.0,82302.0,1.1825256]
[1742328505423,0.1091,82303.0,82302.0,1.1825256]
[1742328506726,0.1091,82303.0,82302.0,1.19734338]
[1742328507115,0.1101,82303.0,82302.0,1.19734338]
[1742328507317,0.1091,82303.0,82302.0,1.19734338]
[1742328507622,0.2316241,82303.0,82302.0,0.88276]
[1742328507922,0.12153,82299.0,82298.0,0.0001823]
[1742328508420,0.12153,82299.0,82276.0,0.4823623]
[1742328508421,0.1215625,82277.0,82276.0,0.4823623]
[1742328508925,0.3608,82283.0,82274.0,0.1071]
[1742328508926,0.1215654,82275.0,82274.0,0.1071]
[1742328509120,0.1215654,82275.0,82274.0,0.22974]
[1742328509320,0.1746654,82275.0,82274.0,0.0534]
[1742328509541,0.2264654,82275.0,82274.0,0.0534]
[1742328510028,0.1049,82275.0,82274.0,0.1749669]
[1742328510913,0.00064,82307.0,82274.0,0.2587]
[1742328511109,0.3608,82311.0,82296.0,0.12359238]
[1742328511311,0.116557,82310.0,82306.0,0.1215186]
[1742328511618,0.0558,82310.0,82309.0,0.1215152]
[1742328512013,0.0558,82310.0,82309.0,0.2332152]
[1742328512527,0.0608,82310.0,82309.0,0.2332152]
[1742328512743,0.0658,82310.0,82309.0,0.2479635]
[1742328513422,0.1873137,82310.0,82309.0,0.2479635]
[1742328513820,0.0658,82310.0,82309.0,0.2479635]
[1742328514021,0.1229,82310.0,82309.0,0.2479635]
[1742328514214,0.1239,82310.0,82309.0,0.2479635]
[1742328515227,0.6062137,82310.0,82309.0,0.2479635]
[1742328515732,0.6062137,82310.0,82309.0,0.2332152]
[1742328516135,0.4847,82310.0,82309.0,0.2332152]
[1742328517138,0.1239,82310.0,82309.0,0.2332152]
[1742328519341,0.2454137,82310.0,82309.0,0.2332152]
[1742328519837,0.1239,82310.0,82309.0,0.2332152]
[1742328521831,0.2454137,82310.0,82309.0,0.1215152]
[1742328522840,0.2454137,82310.0,82309.0,0.1760152]
[1742328524546,0.2454137,82310.0,82308.0,0.1161583]
[1742328524547,0.1215256,82302.0,82301.0,0.1227823]
[1742328524726,0.4823256,82302.0,82301.0,0.1227823]
[1742328524927,0.4823256,82302.0,82301.0,0.0001823]
[1742328525438,0.5920256,82302.0,82301.0,0.0001823]
[1742328525940,0.5980256,82302.0,82301.0,0.0001823]
[1742328526135,0.6030256,82302.0,82301.0,0.0001823]
[1742328527839,0.6030256,82302.0,82301.0,0.1217093]
[1742328530038,0.6030256,82302.0,82301.0,0.0001823]
[1742328532441,0.6030256,82302.0,82301.0,0.1217093]
[1742328532835,0.6030256,82302.0,82301.0,0.0001823]
[1742328533632,0.2422256,82302.0,82301.0,0.0001823]
[1742328534336,0.2422256,82302.0,82301.0,0.0571823]
[1742328534944,0.6030256,82302.0,82301.0,0.1787093]
[1742328535540,0.6030256,82302.0,82301.0,0.2342093]
[1742328538041,4e-05,82312.0,82309.0,0.1215152]
[1742328538231,4e-05,82312.0,82306.0,0.0607592]
[1742328538232,0.1215167,82308.0,82307.0,0.2441169]
[1742328538545,0.1215167,82308.0,82307.0,0.2983182]
[1742328538741,0.1129,82309.0,82308.0,0.1215167]
[1742328538930,0.0557,82314.0,82309.0,0.1215152]
[1742328539130,0.0607555,82312.0,82309.0,0.1757152]
[1742328539745,0.0572,82313.0,82309.0,0.1757152]
[1742328539943,0.1215124,82311.0,82309.0,0.1757152]
[1742328540248,0.0572,82313.0,82309.0,0.1757152]
[1742328540441,0.3658,82310.0,82309.0,0.1757152]
[1742328540840,0.3718,82310.0,82309.0,0.1757152]
[1742328541545,0.011,82310.0,82309.0,0.1757152]
[1742328541750,0.1215053,82316.0,82315.0,0.1215064]
[1742328541938,0.1215053,82316.0,82315.0,0.2440664]
[1742328542132,0.1141518,82317.0,82316.0,0.1215049]
[1742328542133,0.0534,82317.0,82316.0,0.1215049]
[1742328542337,0.0001823,82318.0,82317.0,0.1215034]
[1742328542847,0.0001823,82318.0,82317.0,0.1767034]
[1742328543744,0.0001823,82318.0,82317.0,0.1857433]
[1742328544340,0.1216842,82318.0,82317.0,0.0642399]
[1742328544749,0.1216842,82318.0,82317.0,0.0090399]
[1742328544950,0.1215108,82312.0,82311.0,0.12256]
[1742328545141,0.4823108,82312.0,82311.0,0.13172466]
[1742328548642,0.4823108,82312.0,82311.0,0.25323696]
[1742328548844,0.1215108,82312.0,82311.0,0.13172466]
[1742328549342,0.4823108,82312.0,82311.0,0.13172466]
[1742328552158,0.4823108,82312.0,82311.0,0.25323696]
[1742328552354,0.5371108,82312.0,82311.0,0.25323696]
[1742328552547,0.5371108,82312.0,82311.0,0.13172466]
[1742328553352,0.5371108,82312.0,82311.0,0.25323696]
[1742328553958,0.5371108,82312.0,82311.0,0.13067696]
[1742328554153,0.5371108,82312.0,82311.0,0.00916466]
[1742328554359,0.1822721,82310.0,82309.0,0.1215141]
[1742328554574,0.1822721,82310.0,82309.0,0.1775141]
[1742328555146,0.1215256,82302.0,82301.0,0.0001823]
[1742328555352,0.4823256,82302.0,82301.0,0.0001823]
[1742328555853,0.5382256,82302.0,82301.0,0.0001823]
[1742328556055,0.1215492,82286.0,82285.0,0.21696806]
[1742328556257,0.8431492,82286.0,82285.0,0.21696806]
[1742328556562,0.9539492,82286.0,82285.0,0.21696806]
[1742328557151,0.9539492,82286.0,82285.0,0.22196806]
[1742328558062,1.0070492,82286.0,82285.0,0.22196806]
[1742328558654,1.0070492,82286.0,82285.0,0.23128971]
[1742328559269,1.0070492,82286.0,82285.0,0.01432165]
[1742328560152,1.0070492,82286.0,82285.0,0.00932165]
[1742328560350,0.121558,82280.0,82279.0,1.005119]
[1742328560553,0.121558,82280.0,82279.0,1.004039]
[1742328560748,0.232558,82280.0,82279.0,0.88248]
[1742328561063,0.232558,82280.0,82279.0,1.0040395]
[1742328561966,0.232558,82280.0,82279.0,0.89653718]
[1742328562553,0.232558,82280.0,82279.0,0.00908276]
[1742328562753,0.0607872,82269.0,82267.0,0.1104]
[1742328562949,0.0607872,82269.0,82264.0,4e-05]
[1742328562950,0.1215802,82265.0,82264.0,4e-05]
[1742328563150,0.1215802,82265.0,82264.0,0.0141743]
[1742328563369,0.2292802,82265.0,82264.0,4e-05]
[1742328563965,0.2212802,82265.0,82264.0,0.00895675]
[1742328564167,0.2212802,82265.0,82264.0,4e-05]
[1742328564660,0.2212802,82265.0,82264.0,0.00404]
[1742328565262,0.2212802,82265.0,82264.0,0.1256217]
[1742328565567,0.2212802,82265.0,82264.0,0.2398217]
[1742328566151,0.2212802,82265.0,82264.0,0.11824]
[1742328566352,0.2212802,82265.0,82264.0,0.2448217]
[1742328567256,0.1077,82265.0,82264.0,0.2448217]
[1742328567853,0.183379,82281.0,82272.0,0.1215699]
[1742328568063,0.1153,82281.0,82272.0,0.1215699]
[1742328568257,0.1215629,82277.0,82272.0,0.2929699]
[1742328568771,0.1153,82276.0,82272.0,0.2929699]
[1742328569859,0.1153,82276.0,82272.0,0.2969699]
[1742328571761,0.1217507,82273.0,82272.0,0.121]
[1742328572156,0.2340507,82273.0,82272.0,0.121]
[1742328572773,0.2340507,82273.0,82272.0,0.2425699]
[1742328582479,0.5948507,82273.0,82272.0,0.121]
[1742328583479,0.5948507,82273.0,82272.0,0.2425699]
[1742328593075,0.5948507,82273.0,82272.0,0.121]
[1742328594177,0.5948507,82273.0,82272.0,0.2425699]
[1742328598889,0.5948507,82273.0,82272.0,0.121]
[1742328599084,0.5948507,82273.0,82272.0,0.2425699]
[1742328599990,0.5948507,82273.0,82272.0,0.121]
[1742328600193,0.5948507,82273.0,82272.0,0.2425699]
[1742328602181,0.5948507,82273.0,82272.0,0.121]
[1742328605893,0.5948507,82273.0,82272.0,0.2425699]
[1742328608397,0.5948507,82273.0,82272.0,0.121]
[1742328608599,0.5948507,82273.0,82272.0,0.2425699]
[1742328608801,0.5948507,82273.0,82272.0,0.121]
[1742328611904,0.060788,82268.0,82264.0,4e-05]
[1742328612197,0.1215861,82261.0,82243.0,0.1172]
[1742328612396,0.121592,82257.0,82244.0,0.00893584]
[1742328612590,0.121592,82257.0,82244.0,0.13054704]
[1742328612791,0.230892,82257.0,82244.0,0.00893584]
[1742328612991,0.230892,82257.0,82255.0,8e-05]
[1742328614009,0.234892,82257.0,82255.0,8e-05]
[1742328614707,0.24827776,82257.0,82255.0,8e-05]
[1742328615203,0.37083776,82257.0,82255.0,8e-05]
[1742328617305,0.37083776,82257.0,82256.0,0.0001823]
[1742328617501,0.1216186,82239.0,82238.0,0.88288]
[1742328617707,0.1216216,82237.0,82236.0,0.0597]
[1742328618102,0.1216246,82235.0,82234.0,0.00932352]
[1742328618305,0.1216246,82235.0,82234.0,4e-05]
[1742328618507,0.1766246,82235.0,82234.0,4e-05]
[1742328618704,0.2343246,82235.0,82234.0,4e-05]
[1742328619306,0.2323246,82235.0,82234.0,4e-05]
[1742328619503,0.2313246,82235.0,82234.0,4e-05]
[1742328619698,0.1216334,82229.0,82228.0,0.13093243]
[1742328620004,0.4804334,82229.0,82228.0,0.1216348]
[1742328620303,0.4804334,82229.0,82226.0,0.00012216]
[1742328620304,0.1216364,82227.0,82226.0,0.00012216]
[1742328620605,0.1196364,82227.0,82226.0,0.00012216]
[1742328620804,0.1780364,82227.0,82226.0,0.00012216]
[1742328621010,0.2360364,82227.0,82226.0,0.05922216]
[1742328621210,0.2360364,82227.0,82226.0,0.11932216]
[1742328621716,0.2360364,82227.0,82226.0,0.00012216]
[1742328622515,0.2310364,82227.0,82226.0,0.00012216]
[1742328622715,0.3535964,82227.0,82226.0,0.00012216]
[1742328622912,0.3745002,82227.0,82226.0,0.003]
[1742328623114,0.3745002,82227.0,82226.0,0.006]
[1742328624014,0.3785002,82227.0,82226.0,0.003]
[1742328624310,0.1216423,82223.0,82222.0,0.1131]
[1742328624716,0.1216423,82223.0,82222.0,0.11314]
[1742328625318,0.1216423,82223.0,82222.0,4e-05]
[1742328626013,0.1216423,82223.0,82222.0,0.00932942]
[1742328626314,0.1246423,82223.0,82222.0,0.11664]
[1742328627112,0.1246423,82223.0,82222.0,4e-05]
[1742328627310,0.2425423,82223.0,82222.0,4e-05]
[1742328627821,0.1216571,82213.0,82212.0,0.13046441]
[1742328628216,0.2365571,82213.0,82212.0,0.13046441]
[1742328629009,0.2365571,82213.0,82212.0,0.1166]
[1742328630110,0.2375571,82213.0,82212.0,0.1166]
[1742328630618,0.121666,82207.0,82206.0,0.00108]
[1742328630919,0.1216749,82201.0,82200.0,0.1]
[1742328631123,0.4824749,82201.0,82200.0,0.1]
[1742328631319,0.5954749,82201.0,82200.0,0.1]
[1742328631518,0.5954749,82201.0,82200.0,0.10889983]
[1742328631916,0.5944749,82201.0,82200.0,0.10889983]
[1742328632516,0.5944749,82201.0,82200.0,0.11189983]
[1742328633120,0.6551749,82201.0,82200.0,0.11189983]
[1742328633723,0.6551749,82201.0,82192.0,0.1216881]
[1742328633724,0.0608431,82194.0,82190.0,4e-05]
[1742328633924,0.1216897,82191.0,82190.0,4e-05]
[1742328634324,0.2368897,82191.0,82190.0,0.1217312]
[1742328634527,0.2368897,82191.0,82190.0,0.00903146]
[1742328634723,0.2368897,82191.0,82190.0,0.06653146]
[1742328634919,0.5976897,82191.0,82190.0,0.06953146]
[1742328635122,0.5976897,82191.0,82190.0,0.19122266]
[1742328635519,0.5976897,82191.0,82190.0,0.19422266]
[1742328635719,0.5976897,82191.0,82190.0,0.24992266]
[1742328636015,0.5976897,82191.0,82190.0,0.12823146]
[1742328636731,0.5976897,82191.0,82190.0,0.24992266]
[1742328637316,0.5976897,82191.0,82190.0,0.24692266]
[1742328640622,0.476,82191.0,82190.0,0.24692266]
[1742328641031,0.5976897,82191.0,82190.0,0.24692266]
[1742328641333,0.476,82191.0,82190.0,0.24692266]
[1742328641534,0.1152,82191.0,82190.0,0.24692266]
[1742328642333,0.2368897,82191.0,82190.0,0.24692266]
[1742328643530,0.1152,82191.0,82190.0,0.24692266]
[1742328644434,0.2368897,82191.0,82190.0,0.24692266]
[1742328646334,0.2368897,82191.0,82190.0,0.12523146]
[1742328646533,0.2368897,82191.0,82190.0,0.06953146]
[1742328646728,0.2368897,82191.0,82190.0,0.01199146]
[1742328649334,0.2502828,82191.0,82190.0,0.01199146]
[1742328650927,0.2368897,82191.0,82190.0,0.01199146]
[1742328651927,0.2368897,82191.0,82190.0,0.06799146]
[1742328652639,0.2368897,82191.0,82190.0,0.18968266]
[1742328653134,0.2368897,82191.0,82190.0,0.01199146]
[1742328655638,0.0608476,82188.0,82184.0,4e-05]
[1742328655838,0.1217074,82179.0,82177.0,0.00910999]
[1742328656144,0.1217074,82179.0,82171.0,0.0606]
[1742328656145,0.5426074,82179.0,82173.0,0.2904121]
[1742328656442,0.0608557,82177.0,82175.0,0.2892921]
[1742328656641,0.2386119,82176.0,82175.0,0.30261042]
[1742328658231,0.2386119,82176.0,82175.0,0.42432382]
[1742328658428,0.2386119,82176.0,82175.0,0.30261042]
[1742328658634,0.2386119,82176.0,82175.0,0.2892921]
[1742328660244,0.2386119,82176.0,82175.0,0.4110055]
[1742328661047,0.2386119,82176.0,82175.0,0.2342134]
[1742328661546,0.1169,82176.0,82175.0,0.2342134]
[1742328661731,0.061,82176.0,82175.0,0.2342134]
[1742328661935,0.3608,82179.0,82175.0,0.2342134]
[1742328661936,0.3608,82179.0,82178.0,0.1217089]
[1742328662135,0.4825074,82179.0,82178.0,0.1217089]
[1742328662336,0.5401074,82179.0,82178.0,0.2381089]
[1742328662538,0.5972074,82179.0,82178.0,0.2381089]
[1742328662948,0.4755,82179.0,82178.0,0.2381089]
[1742328663335,0.5972074,82179.0,82178.0,0.2381089]
[1742328664046,0.5972074,82179.0,82178.0,0.1164]
[1742328664347,0.5982074,82179.0,82178.0,0.1164]
[1742328666243,0.1217119,82176.0,82175.0,0.1217132]
[1742328666549,0.1217119,82176.0,82175.0,0.1797132]
[1742328666852,0.2369119,82176.0,82175.0,0.058]
[1742328667143,0.1217148,82174.0,82173.0,0.00900042]
[1742328667332,0.1217193,82171.0,82170.0,0.33457151]
[1742328667530,0.1217193,82171.0,82170.0,0.22626418]
[1742328667743,0.5977193,82171.0,82170.0,0.21727151]
[1742328668537,0.5977193,82171.0,82170.0,0.21827151]
[1742328669448,0.5977193,82171.0,82170.0,0.001]
[1742328671747,0.1152,82171.0,82170.0,0.2390208]
[1742328671941,0.0599,82174.0,82173.0,0.1217163]
[1742328672145,0.0599,82174.0,82173.0,0.2380163]
[1742328672546,0.2395148,82174.0,82173.0,0.2380163]
[1742328672744,0.1178,82174.0,82173.0,0.2380163]
[1742328673654,0.1178,82174.0,82173.0,0.2390163]
[1742328673851,0.00018253,82184.0,82179.0,0.1217074]
[1742328674049,0.482506,82180.0,82179.0,0.1217074]
[1742328674437,0.543206,82180.0,82179.0,0.1813074]
[1742328674843,0.482506,82180.0,82179.0,0.1813074]
[1742328675039,0.3608,82180.0,82179.0,0.3039074]
[1742328675243,0.4819,82180.0,82179.0,0.3612074]
[1742328675451,0.4829,82180.0,82179.0,0.3612074]
[1742328675649,0.4829,82180.0,82179.0,0.37435805]
[1742328675852,0.4839,82180.0,82179.0,0.37435805]
[1742328676046,0.3628,82180.0,82179.0,0.37435805]
[1742328676751,0.484506,82180.0,82179.0,0.37435805]
[1742328676943,0.4839,82180.0,82179.0,0.37435805]
[1742328678350,0.605606,82180.0,82179.0,0.25265065]
[1742328678844,0.605606,82180.0,82179.0,0.13575065]
[1742328679351,0.1217104,82177.0,82176.0,0.2417]
[1742328679551,0.060856,82176.0,82175.0,0.1226]
[1742328679748,0.2395679,82176.0,82175.0,0.1226]
[1742328680453,0.2968679,82176.0,82175.0,0.1226]
[1742328681256,0.2968679,82176.0,82175.0,0.3042134]
[1742328681646,0.2968679,82176.0,82175.0,0.3613134]
[1742328683359,0.2968679,82176.0,82175.0,0.2396]
[1742328684258,0.2968679,82176.0,82175.0,0.3613134]
[1742328684464,0.2968679,82176.0,82175.0,0.2396]
[1742328684657,0.2968679,82176.0,82175.0,0.1226]
[1742328686161,0.6576679,82176.0,82175.0,0.2443134]
[1742328686848,0.6576679,82176.0,82175.0,0.3007134]
[1742328687555,0.6576679,82176.0,82175.0,0.3606134]
[1742328688561,0.6616679,82176.0,82175.0,0.3606134]
[1742328689056,0.6616679,82176.0,82175.0,0.2380134]
[1742328689256,0.6616679,82176.0,82175.0,0.0599]
[1742328689257,0.6666679,82176.0,82175.0,0.0599]
[1742328689558,0.1217148,82174.0,82173.0,0.01333914]
[1742328689763,0.1217193,82171.0,82170.0,0.3006805]
[1742328690064,0.1217193,82171.0,82170.0,0.12256]
[1742328690266,0.2352193,82171.0,82170.0,0.12256]
[1742328690563,0.2928193,82171.0,82170.0,0.2442808]
[1742328690860,0.2352193,82171.0,82170.0,0.23996]
[1742328691061,0.2352193,82171.0,82170.0,0.12256]
[1742328691563,0.2392193,82171.0,82170.0,0.12256]
[1742328691953,0.2432193,82171.0,82170.0,0.12256]
[1742328692154,0.2432193,82171.0,82170.0,0.2442808]
[1742328692358,0.2432193,82171.0,82170.0,0.3591808]
[1742328694958,0.2432193,82171.0,82170.0,0.2366208]
[1742328695960,0.2432193,82171.0,82170.0,0.1217208]
[1742328696352,0.2432193,82171.0,82170.0,0.2385208]
[1742328701746,0.2432193,82171.0,82170.0,0.1217208]
[1742328701948,0.1217267,82166.0,82164.0,0.00104]
[1742328702162,0.1217356,82160.0,82159.0,0.1217366]
[1742328702567,0.1217371,82159.0,82158.0,0.1217375]
[1742328702766,0.1217371,82159.0,82158.0,0.1309992]
[1742328703060,0.2389371,82159.0,82158.0,0.1309992]
[1742328703766,0.2389371,82159.0,82158.0,0.0092617]
[1742328703967,0.2389371,82159.0,82157.0,0.1217388]
[1742328703968,0.1217386,82158.0,82157.0,0.1217388]
[1742328704367,0.1217386,82158.0,82157.0,0.13543833]
[1742328704368,0.2389386,82158.0,82157.0,0.13543833]
[1742328704562,0.2389386,82158.0,82157.0,0.25333833]
[1742328704958,0.5997386,82158.0,82157.0,0.31333833]
[1742328705657,0.5997386,82158.0,82157.0,0.01369953]
[1742328705861,0.1217415,82156.0,82155.0,0.2434841]
[1742328706063,0.1217415,82156.0,82155.0,0.25275068]
[1742328706369,0.2350415,82156.0,82155.0,0.25275068]
[1742328707854,0.2350415,82156.0,82155.0,0.26596087]
[1742328717074,0.2350415,82156.0,82155.0,0.38056087]
[1742328717776,0.1133,82156.0,82155.0,0.38056087]
[1742328717978,0.2350415,82156.0,82155.0,0.38056087]
[1742328719169,0.004,82171.0,82166.0,0.1217267]
[1742328719370,0.004,82171.0,82166.0,0.3595467]
[1742328719567,0.0564,82170.0,82166.0,0.4171467]
[1742328719876,0.1781218,82170.0,82166.0,0.4171467]
[1742328720472,0.0566,82169.0,82166.0,0.4171467]
[1742328720869,0.00318253,82167.0,82166.0,0.4171467]
[1742328724375,0.11598253,82167.0,82166.0,0.4171467]
[1742328724570,0.23770773,82167.0,82166.0,0.4171467]
[1742328724765,0.23770773,82167.0,82166.0,0.3588467]
[1742328724966,0.11598253,82167.0,82166.0,0.3588467]
[1742328727776,0.36144,82182.0,82181.0,0.1217045]
[1742328727777,0.3608,82182.0,82181.0,0.1217045]
[1742328728782,0.482503,82182.0,82181.0,0.1217045]
[1742328728983,0.658703,82182.0,82181.0,0.1217045]
[1742328729381,0.1217098,82180.0,82179.0,0.1217061]
[1742328729568,0.1217125,82176.0,82175.0,0.1217104]
[1742328730380,0.1217125,82176.0,82175.0,0.2434211]
[1742328730781,0.2400125,82176.0,82175.0,0.2434211]
[1742328731085,0.1233,82176.0,82175.0,0.2434211]
[1742328731384,0.2450119,82176.0,82175.0,0.25630452]
[1742328732569,0.2450119,82176.0,82175.0,0.01288342]
[1742328732770,0.1217134,82175.0,82174.0,0.12248]
[1742328732980,0.4825134,82175.0,82174.0,0.12248]
[1742328733176,0.1217148,82174.0,82173.0,0.00018253]
[1742328733677,0.2348148,82174.0,82173.0,0.01337569]
[1742328734889,0.2348148,82174.0,82173.0,0.00018253]
[1742328735276,0.2398148,82174.0,82173.0,0.00018253]
[1742328736590,0.25270603,82174.0,82173.0,0.00018253]
[1742328737377,0.1217163,82173.0,82172.0,4e-05]
[1742328737778,0.1217163,82173.0,82163.0,0.01321413]
[1742328737779,0.1217297,82164.0,82163.0,0.01321413]
[1742328737978,0.1217326,82162.0,82161.0,0.885]
[1742328738176,0.1217326,82162.0,82161.0,0.88396]
[1742328738382,0.1789326,82162.0,82161.0,0.88396]
[1742328738690,0.2911326,82162.0,82161.0,1.0056941]
[1742328739786,0.2911326,82162.0,82161.0,1.01877959]
[1742328740380,0.2921326,82162.0,82161.0,0.89704549]
[1742328741391,0.2921326,82162.0,82161.0,1.01877959]
[1742328743491,0.2921326,82162.0,82161.0,0.13481959]
[1742328745095,0.2921326,82162.0,82161.0,0.19521959]
[1742328746984,0.2921326,82162.0,82161.0,0.13481959]
[1742328747185,0.2921326,82162.0,82158.0,4e-05]
[1742328747186,0.1217356,82160.0,82158.0,4e-05]
[1742328747494,0.2367371,82159.0,82158.0,4e-05]
[1742328747681,0.1217415,82156.0,82152.0,0.08148108]
[1742328747878,0.060873,82153.0,82151.0,0.1165]
[1742328748083,0.1155,82152.0,82151.0,0.1165]
[1742328748298,0.2942474,82152.0,82151.0,0.2515217]
[1742328748487,0.115,82152.0,82151.0,0.3732699]
[1742328748684,0.3608,82157.0,82156.0,0.1217415]
[1742328748889,0.3608,82157.0,82156.0,0.2382415]
[1742328749386,0.4188,82157.0,82156.0,0.2382415]
[1742328750196,0.058,82157.0,82156.0,0.2973415]
[1742328751093,0.3608,82164.0,82156.0,0.2973415]
[1742328751094,0.3608,82164.0,82163.0,0.1217311]
[1742328751495,0.3608,82164.0,82161.0,0.2441733]
[1742328751697,0.1217326,82162.0,82161.0,0.2441733]
[1742328752082,0.1808326,82162.0,82161.0,0.2441733]
[1742328752501,0.2389326,82162.0,82161.0,0.2441733]
[1742328753499,0.2399326,82162.0,82161.0,0.2441733]
[1742328754100,0.2409326,82162.0,82161.0,0.2441733]
[1742328754400,0.2409326,82162.0,82161.0,0.1217333]
[1742328758505,0.1192,82162.0,82161.0,0.2374333]
[1742328761514,0.00018253,82170.0,82166.0,0.0608628]
[1742328761699,0.0585,82169.0,82168.0,0.1217237]
[1742328761904,0.1158,82169.0,82168.0,0.2421237]
[1742328762104,0.1158,82169.0,82168.0,0.3645237]
[1742328762306,0.5983223,82169.0,82168.0,0.2428]
[1742328762505,0.1751,82169.0,82168.0,0.3645237]
[1742328762809,0.2968223,82169.0,82168.0,0.3645237]
[1742328763003,0.1811,82169.0,82168.0,0.3645237]
[1742328763314,0.3028223,82169.0,82168.0,0.3645237]
[1742328765707,0.1811,82169.0,82168.0,0.3645237]
[1742328766916,0.1218,82169.0,82168.0,0.3645237]
[1742328771009,0.1218,82169.0,82168.0,0.2441237]
[1742328771403,0.2435223,82169.0,82168.0,0.2441237]
[1742328771605,0.2435223,82169.0,82168.0,0.3548237]
[1742328771801,0.1218,82169.0,82168.0,0.3548237]
[1742328784628,0.2435223,82169.0,82168.0,0.3548237]
[1742328788331,0.2435223,82169.0,82168.0,0.2441237]
[1742328790218,0.2435223,82169.0,82168.0,0.3572237]
[1742328791235,0.2435223,82169.0,82168.0,0.2348237]
[1742328791431,0.2435223,82169.0,82168.0,0.3571437]
[1742328794031,0.2435223,82169.0,82168.0,0.35930154]
[1742328796320,0.2435223,82169.0,82168.0,0.35977559]
[1742328796828,0.3608,82189.0,82168.0,0.23805189]
[1742328797029,0.1217079,82182.0,82181.0,0.2434025]
[1742328797232,0.1217079,82182.0,82181.0,0.3657225]
[1742328797423,0.1217079,82182.0,82181.0,0.36835439]
[1742328797628,0.0608502,82184.0,82183.0,0.1217015]
[1742328797829,0.0597,82187.0,82186.0,0.1216971]
[1742328798230,0.1813956,82187.0,82186.0,0.2345971]
[1742328798431,0.0597,82187.0,82186.0,0.23722899]
[1742328799434,0.1813956,82187.0,82186.0,0.23722899]
[1742328799636,0.0697,82187.0,82186.0,0.23822899]
[1742328800534,0.1883,82187.0,82186.0,0.23822899]
[1742328801441,0.1883,82187.0,82186.0,0.25119326]
[1742328801645,0.12841739,82187.0,82186.0,0.25119326]
[1742328801847,0.00018253,82192.0,82191.0,0.1216897]
[1742328802048,0.0579,82196.0,82195.0,0.1216838]
[1742328802257,0.3608,82200.0,82199.0,0.1216778]
[1742328802444,0.3608,82200.0,82199.0,0.24658969]
[1742328802634,0.3608,82200.0,82199.0,0.36358969]
[1742328803048,0.1818708,82204.0,82199.0,0.36358969]
[1742328803245,0.1818708,82204.0,82203.0,0.1216719]
[1742328803430,0.0608361,82203.0,82199.0,0.23928]
[1742328803751,0.1266764,82200.0,82199.0,0.001]
[1742328804046,0.1326764,82200.0,82199.0,0.12328]
[1742328804942,0.2500764,82200.0,82199.0,0.12328]
[1742328805646,0.2390764,82200.0,82199.0,0.12228]
[1742328805841,0.2390764,82200.0,82199.0,0.2439578]
[1742328806444,0.2400764,82200.0,82199.0,0.2439578]
[1742328807049,0.2400764,82200.0,82199.0,0.25698542]
[1742328808349,0.2400764,82200.0,82199.0,0.31278542]
[1742328808550,0.2400764,82200.0,82199.0,0.36998542]
[1742328811853,0.2400764,82200.0,82199.0,0.24830762]
[1742328812252,0.2400764,82200.0,82199.0,0.36998542]
[1742328813158,0.2400764,82200.0,82199.0,0.36994542]
[1742328814948,0.2400764,82200.0,82199.0,0.24826762]
[1742328815348,0.2410764,82200.0,82199.0,0.24826762]
[1742328815954,0.2400764,82200.0,82199.0,0.24826762]
[1742328818842,0.2410764,82200.0,82199.0,0.24826762]
[1742328819239,0.2410764,82200.0,82199.0,0.36994542]
[1742328819451,0.2400764,82200.0,82199.0,0.36994542]
[1742328819642,0.2410764,82200.0,82199.0,0.12602762]
[1742328819844,0.2410764,82200.0,82199.0,0.24822762]
[1742328820349,0.2410764,82200.0,82199.0,0.36990542]
[1742328821756,0.2400764,82200.0,82199.0,0.24822762]
[1742328821953,0.1216838,82195.0,82194.0,0.00927334]
[1742328822144,0.1216852,82194.0,82193.0,0.00018253]
[1742328822456,0.2971852,82194.0,82193.0,0.00018253]